bitfinex/quotes_ETHUSD_20220308
["timestamp","ask_amount","ask_price","bid_price","bid_amount"]
[1646704991091,0.99898011,2522.7,2522.6,1.0]
[1646704991389,0.99898011,2522.7,2522.4,0.19046141]
[1646704991587,1.29898011,2522.7,2522.4,0.19046141]
[1646704991789,1.29898011,2522.7,2522.4,0.0047966]
[1646704991790,0.91652908,2522.6,2522.4,0.0047966]
[1646704992189,1.21652908,2522.6,2522.4,0.0047966]
[1646704992390,0.91652908,2522.5,2522.4,0.0047966]
[1646704992595,0.3,2522.6,2522.4,0.0047966]
[1646704992791,0.91577594,2522.5,2522.4,0.0047966]
[1646704992990,0.91577594,2522.5,2521.8,0.00205315]
[1646704992991,1.15108539,2522.1,2521.8,0.00205315]
[1646704993193,1.15108539,2522.1,2522.0,0.0191881]
[1646704993393,1.45108539,2522.1,2522.0,0.0191881]
[1646704993593,1.45108539,2522.1,2522.0,0.04672995]
[1646704993794,1.45108539,2522.1,2522.0,0.02754185]
[1646704994841,0.3,2522.1,2522.0,0.02754185]
[1646704995344,1.9832342,2522.7,2522.0,0.02754185]
[1646704995345,0.9915845,2522.6,2522.0,0.02754185]
[1646704995541,0.3,2522.7,2522.0,0.02111885]
[1646704995742,1.21499063,2522.6,2522.0,0.02111885]
[1646704995942,1.02600411,2522.4,2522.0,0.02111885]
[1646704996344,1.32600411,2522.4,2522.0,0.02111885]
[1646704996544,1.32600411,2522.4,2522.0,1.01264885]
[1646704996744,1.32600411,2522.4,2522.0,0.02111885]
[1646704997744,0.3,2522.4,2522.1,0.00479822]
[1646704998205,2.3364,2522.9,2522.1,0.99627822]
[1646704998490,0.91476863,2522.8,2522.1,0.99627822]
[1646704998690,0.91476863,2522.7,2522.1,0.99148]
[1646704998891,1.20429857,2522.4,2522.1,0.99627818]
[1646704999090,1.20429857,2522.4,2522.1,0.00479818]
[1646704999293,1.12724569,2522.0,2521.8,1.01917268]
[1646704999492,1.42724569,2522.0,2521.8,1.01917268]
[1646704999891,1.42724569,2522.0,2521.8,0.99168]
[1646705000292,1.42724569,2522.0,2521.8,1.29168]
[1646705001096,1.12724569,2522.0,2521.8,1.29168]
[1646705001296,1.12724569,2522.0,2521.8,1.29347978]
[1646705001495,1.12724569,2522.0,2521.8,1.24347978]
[1646705001697,1.12724569,2522.0,2521.9,0.67465553]
[1646705002535,1.12724569,2522.0,2521.9,1.66610553]
[1646705004942,1.12724569,2522.0,2521.9,0.67465553]
[1646705005990,1.12724569,2522.0,2521.8,2.85120834]
[1646705006187,1.12724569,2522.0,2521.8,1.85639782]
[1646705006388,1.12724569,2522.0,2521.8,2.85639782]
[1646705006589,1.12724569,2522.0,2521.8,1.85639782]
[1646705006987,1.12724569,2522.0,2521.8,1.85120834]
[1646705007187,1.12724569,2522.0,2521.9,0.99158]
[1646705008590,1.12724569,2522.0,2521.9,1.6669225]
[1646705009444,1.42724569,2522.0,2521.3,1.98558315]
[1646705009745,1.42724569,2522.0,2521.8,0.00507339]
[1646705010547,1.04211941,2521.9,2521.8,0.00507339]
[1646705010758,1.04211941,2521.9,2521.2,0.00205315]
[1646705010951,0.9921482,2521.7,2520.9,0.00205315]
[1646705011149,0.9921482,2521.7,2520.7,1.58040833]
[1646705011350,0.9921482,2521.7,2520.7,0.00205315]
[1646705011351,1.2921482,2521.7,2520.7,0.00205315]
[1646705011549,1.2921482,2521.7,2520.5,7.35205315]
[1646705011752,1.25630048,2521.2,2520.7,1.14982121]
[1646705011949,0.3,2521.2,2520.7,1.14982121]
[1646705012151,0.9921791,2521.1,2520.7,1.17011396]
[1646705012350,0.3,2521.0,2520.7,1.17011396]
[1646705012749,0.99217,2521.8,2520.7,1.17011396]
[1646705012750,3.34287,2521.8,2520.7,1.17011396]
[1646705013197,0.90357316,2521.3,2520.7,2.14398436]
[1646705013387,1.20357316,2521.3,2520.7,2.14700388]
[1646705013590,0.99212,2521.2,2520.7,2.14700388]
[1646705014187,1.20357316,2521.3,2520.7,2.14700388]
[1646705014388,1.20357316,2521.3,2520.7,2.14193121]
[1646705014590,1.20357316,2521.3,2520.8,0.9971326]
[1646705014991,3.5,2521.2,2520.8,0.9971326]
[1646705015191,3.5,2521.2,2520.8,0.0050726]
[1646705015391,0.9921525,2521.2,2520.8,0.0050726]
[1646705015589,4.4921525,2521.2,2520.4,0.00205315]
[1646705015816,4.4921525,2521.2,2520.3,0.102182]
[1646705015994,0.9924,2521.1,2520.3,0.102182]
[1646705016394,1.12257979,2520.8,2520.3,1.19682161]
[1646705016594,0.9923641,2520.9,2520.3,1.19682161]
[1646705016795,0.3,2520.9,2520.3,1.19682161]
[1646705017041,5.6564,2521.3,2520.3,1.19682161]
[1646705017842,1.14975549,2521.2,2520.7,1.19147083]
[1646705018247,2.14184269,2521.2,2520.5,0.99205]
[1646705018848,2.14184269,2521.2,2520.4,0.99208]
[1646705019047,2.14184269,2521.2,2520.5,1.9841]
[1646705019245,1.08335007,2520.8,2520.3,1.102182]
[1646705019446,2.07558437,2520.8,2520.7,0.00532543]
[1646705019646,2.37558437,2520.8,2520.7,0.00532543]
[1646705020248,2.37558437,2520.8,2520.3,1.11572691]
[1646705020249,2.37558437,2520.8,2520.3,1.094422]
[1646705020449,2.37558437,2520.8,2520.6,0.00532551]
[1646705020700,3.5,2521.3,2520.8,0.34243393]
[1646705020894,3.5,2521.6,2520.8,0.33808916]
[1646705021296,7.5973,2521.7,2520.8,0.33808916]
[1646705021895,7.5973,2521.7,2521.2,1.98761944]
[1646705022095,1.1685,2521.7,2521.2,1.98761944]
[1646705022298,2.92363427,2521.8,2521.2,1.98761944]
[1646705022496,0.93976607,2521.8,2521.2,1.98761944]
[1646705022896,0.99186,2521.9,2521.2,1.98761944]
[1646705023095,0.99186,2521.9,2521.3,0.00532496]
[1646705023296,0.99186,2521.9,2521.3,0.99715496]
[1646705023696,0.99186,2521.9,2521.3,0.00532496]
[1646705023897,0.99186,2521.9,2521.2,0.99572944]
[1646705024098,1.18513804,2521.8,2521.2,0.99572944]
[1646705024299,1.18513804,2521.8,2521.5,0.00514514]
[1646705024939,1.12724569,2522.0,2521.5,0.00514514]
[1646705025143,1.12724569,2522.0,2521.3,0.99178]
[1646705025338,1.12724569,2522.0,2521.2,3.47231259]
[1646705025339,1.12724569,2522.0,2521.2,3.47025944]
[1646705025540,1.12724569,2522.0,2521.5,0.00514511]
[1646705026341,1.12724569,2522.0,2521.2,0.20025315]
[1646705026645,1.12724569,2522.0,2521.6,0.00514504]
[1646705027044,4.62724569,2522.0,2521.6,0.00514504]
[1646705027343,0.3,2521.8,2521.6,0.00514504]
[1646705027542,3.8,2521.8,2520.9,0.00205315]
[1646705027745,4.8,2521.8,2520.8,0.33808916]
[1646705027943,8.70641137,2521.8,2521.7,0.00504278]
[1646705028198,7.18962137,2521.8,2521.7,0.00504278]
[1646705028688,6.28321,2521.8,2520.9,0.00205315]
[1646705028887,0.88971067,2521.1,2520.8,0.33808916]
[1646705029092,1.9842394,2521.6,2520.8,0.33808916]
[1646705029296,0.3,2521.1,2520.8,0.33808916]
[1646705029791,0.9921197,2521.3,2520.8,0.33808916]
[1646705029792,1.2921197,2521.3,2520.8,0.33808916]
[1646705030394,1.15951866,2521.0,2520.8,0.33808916]
[1646705030792,1.45951866,2521.0,2520.8,0.33808916]
[1646705031192,0.3,2521.0,2520.8,0.33808916]
[1646705031494,0.3,2521.0,2520.8,0.34341387]
[1646705031943,0.3,2521.3,2520.8,0.34341387]
[1646705032341,0.3,2521.3,2520.8,0.33808916]
[1646705032342,1.16007253,2521.2,2520.8,0.33808916]
[1646705032741,1.16007253,2521.2,2520.8,0.34341387]
[1646705033542,1.16007253,2521.2,2520.8,0.33808916]
[1646705033843,1.16007253,2521.2,2520.9,0.00532463]
[1646705034845,1.16007253,2521.2,2520.8,0.33808916]
[1646705035145,1.16007253,2521.2,2520.9,0.00532459]
[1646705035546,1.11007253,2521.2,2520.9,0.00532459]
[1646705035994,1.11007253,2521.2,2520.8,0.33808916]
[1646705036192,1.11007253,2521.2,2520.9,0.00514888]
[1646705037195,1.11007253,2521.2,2520.8,0.33808916]
[1646705037397,1.11007253,2521.2,2520.9,0.00514888]
[1646705037604,0.95706529,2521.1,2520.9,0.00514888]
[1646705037795,2.24929399,2521.1,2520.9,0.00514888]
[1646705037997,1.2922287,2521.1,2520.9,0.00514888]
[1646705038397,1.2922287,2521.1,2520.8,0.33808916]
[1646705038596,1.2922287,2521.1,2520.9,0.00514892]
[1646705039543,1.2922287,2521.1,2520.8,0.33808916]
[1646705039942,1.2922287,2521.1,2520.9,0.00504242]
[1646705040341,0.3,2521.1,2520.9,0.00504242]
[1646705040748,1.41007253,2521.2,2520.8,0.33808916]
[1646705041045,1.41007253,2521.2,2520.9,0.00504242]
[1646705041948,1.41007253,2521.2,2520.8,0.33808916]
[1646705042346,1.9843676,2521.4,2520.8,0.33808916]
[1646705042348,0.9920671,2521.4,2520.8,0.33808916]
[1646705042547,10.2049,2521.7,2520.8,0.33808916]
[1646705042548,10.2049,2521.7,2520.9,0.63525683]
[1646705042752,0.95757394,2521.6,2521.0,3.5]
[1646705042946,0.95757394,2521.6,2521.1,0.99188]
[1646705043489,0.95757394,2521.6,2521.3,0.92226269]
[1646705043688,0.98057036,2521.8,2521.3,0.92226269]
[1646705043889,0.95762907,2521.7,2521.3,0.92226269]
[1646705044492,0.95762907,2521.7,2521.3,1.91407269]
[1646705044693,1.26544565,2522.0,2521.3,1.91407269]
[1646705044892,0.95779938,2521.9,2521.3,1.91407269]
[1646705045190,1.25779938,2521.9,2521.3,1.91407269]
[1646705045391,0.95779938,2521.8,2521.3,1.91407269]
[1646705045592,1.12724569,2522.0,2521.4,4.13549639]
[1646705045795,1.12724569,2522.0,2521.5,0.63547324]
[1646705045796,0.95822015,2521.9,2521.5,0.63547324]
[1646705045997,0.95822015,2521.9,2521.3,1.91407269]
[1646705046196,0.95822015,2521.9,2521.4,0.63547749]
[1646705046597,0.95822015,2521.9,2521.7,1.21003729]
[1646705046798,1.25822015,2521.9,2521.7,1.21003729]
[1646705047041,1.12724569,2522.0,2521.7,1.21003729]
[1646705047244,0.95877272,2521.9,2521.7,1.21003729]
[1646705048143,0.95877272,2521.9,2521.4,0.99173]
[1646705048344,0.95877272,2521.9,2521.2,5.48550315]
[1646705048544,0.95877272,2521.9,2521.3,0.63585685]
[1646705048744,0.95877272,2521.9,2521.0,1.98569315]
[1646705048943,0.95877272,2521.9,2521.1,0.63638701]
[1646705049146,0.95877272,2521.9,2521.2,0.63638701]
[1646705049147,1.09809558,2521.4,2521.2,0.63638701]
[1646705049444,1.39809558,2521.4,2520.8,2.32175916]
[1646705049643,1.39809558,2521.4,2520.9,0.63655356]
[1646705050044,0.95959861,2521.3,2520.9,0.63655356]
[1646705050350,1.25959861,2521.3,2520.9,0.63655356]
[1646705050544,0.95959861,2521.2,2520.9,0.63655356]
[1646705051196,1.20312792,2521.0,2520.8,0.34313879]
[1646705051402,1.50312792,2521.0,2520.9,0.63726686]
[1646705051597,2.46357128,2521.0,2520.9,0.63726686]
[1646705051796,1.26044336,2521.0,2520.9,0.63726686]
[1646705052196,0.3,2521.0,2520.9,0.63726686]
[1646705052599,4.26821137,2521.7,2520.9,0.63726686]
[1646705052797,1.07219283,2521.3,2520.9,0.63726686]
[1646705052997,0.96139811,2521.2,2520.9,0.63726686]
[1646705058997,1.95351811,2521.2,2520.9,0.63726686]
[1646705059198,0.96139811,2521.1,2520.9,0.63726686]
[1646705059396,1.26139811,2521.1,2520.9,0.63726686]
[1646705059598,0.96139811,2521.0,2520.9,0.63726686]
[1646705059798,1.26139811,2521.0,2520.9,0.63726686]
[1646705060800,1.26139811,2521.0,2520.9,0.63815949]
[1646705061000,2.25355811,2521.0,2520.8,0.34259174]
[1646705061301,2.25355811,2521.0,2520.9,0.63823222]
[1646705061302,0.99216,2521.0,2520.9,0.63823222]
[1646705061499,0.95997377,2521.0,2520.8,0.34259174]
[1646705061799,1.67219283,2521.3,2520.9,0.63820595]
[1646705062042,1.67219283,2521.3,2520.8,0.34259169]
[1646705062043,0.95994353,2521.2,2521.0,0.63816334]
[1646705062247,0.95994353,2521.2,2520.8,0.34259169]
[1646705062451,0.95994353,2521.2,2520.9,0.63816123]
[1646705062652,6.489117,2521.7,2520.9,0.63816123]
[1646705062653,0.95994353,2521.1,2520.9,0.63816123]
[1646705062852,2.69219137,2521.7,2520.9,0.63598756]
[1646705063249,0.99202,2521.4,2520.9,0.63598756]
[1646705064251,0.99202,2521.4,2521.1,1.11071098]
[1646705065458,0.99202,2521.4,2520.8,0.73629486]
[1646705065904,0.99202,2521.4,2520.8,0.73148916]
[1646705066303,0.99202,2521.4,2520.8,0.73653442]
[1646705066703,0.99202,2521.4,2520.9,0.87324226]
[1646705067502,1.9841089,2521.4,2520.9,0.87324226]
[1646705067703,0.9921,2521.3,2520.9,0.87324226]
[1646705068304,1.2921,2521.3,2520.8,0.34309979]
[1646705068504,1.2921,2521.3,2520.8,0.33808916]
[1646705068704,1.2921,2521.3,2520.8,0.34309973]
[1646705069541,1.2921,2521.3,2520.8,0.33808916]
[1646705069745,1.0769791,2521.2,2520.8,0.33808916]
[1646705069945,0.99211,2521.2,2520.8,0.34310187]
[1646705070450,1.29211,2521.2,2520.8,0.34310187]
[1646705070845,1.29211,2521.2,2520.8,0.33808916]
[1646705071047,1.29211,2521.2,2520.8,0.34310181]
[1646705071252,1.59211,2521.2,2520.8,0.34310181]
[1646705071647,2.5842814,2521.2,2520.8,0.34310181]
[1646705072049,2.5842814,2521.2,2520.8,0.33808916]
[1646705072249,2.5842814,2521.2,2520.8,0.34310553]
[1646705072250,0.70811137,2521.1,2520.8,0.34310553]
[1646705072449,2.69290077,2521.1,2520.8,0.34310553]
[1646705072749,2.2847937,2521.0,2520.8,0.34310553]
[1646705072949,2.5847937,2521.0,2520.8,0.34310553]
[1646705073193,2.5847937,2521.0,2520.8,0.33808916]
[1646705073394,3.5771737,2521.0,2520.8,0.34293629]
[1646705073591,0.97557997,2520.9,2520.8,0.34293629]
[1646705074395,0.97557997,2520.9,2520.8,0.33808916]
[1646705076808,0.97557997,2520.9,2520.8,0.33708916]
[1646705077655,1.68369134,2520.9,2520.8,0.33708916]
[1646705077853,5.5,2520.8,2520.7,0.0047685]
[1646705078054,0.99251,2520.7,2520.3,0.102182]
[1646705078253,0.99251,2520.7,2520.3,0.052182]
[1646705078459,1.29251,2520.7,2520.3,0.052182]
[1646705078655,2.00062137,2520.7,2520.3,0.052182]
[1646705079257,1.20102806,2520.6,2520.3,0.052182]
[1646705079456,1.98518,2520.5,2520.3,0.052182]
[1646705079657,3.9703556,2520.5,2520.3,0.052182]
[1646705079856,4.2703556,2520.5,2520.3,0.052182]
[1646705080693,0.3,2520.4,2520.3,0.05730067]
[1646705081106,0.9927298,2520.1,2519.6,0.00785156]
[1646705081300,1.2927298,2520.1,2519.6,0.00785156]
[1646705081499,1.2927298,2520.1,2519.7,0.04149492]
[1646705081500,2.0837298,2520.1,2519.7,0.04149492]
[1646705081798,2.0837298,2520.1,2519.6,0.00785156]
[1646705081799,9.0,2520.0,2519.6,0.00785156]
[1646705082001,6.55182458,2519.9,2519.6,0.01570312]
[1646705082200,4.49304,2519.8,2519.6,0.01570312]
[1646705082399,4.49304,2519.8,2519.2,0.06601458]
[1646705082400,3.5,2519.7,2519.2,0.06601458]
[1646705082800,4.5,2519.7,2519.2,0.06601458]
[1646705082998,3.5,2519.7,2519.2,0.06601458]
[1646705083199,4.5,2519.7,2519.2,0.06601458]
[1646705083398,6.4793424,2519.7,2519.2,0.06601458]
[1646705083602,0.3,2519.6,2519.2,0.06601458]
[1646705083799,1.17619107,2519.5,2519.2,0.06601458]
[1646705084553,2.16922107,2519.5,2519.2,0.06601458]
[1646705084752,2.76922107,2519.5,2519.2,0.06601458]
[1646705085054,3.76224417,2519.5,2519.2,0.06601458]
[1646705085255,3.46224417,2519.5,2519.2,0.06601458]
[1646705085459,3.46224417,2519.5,2519.2,0.07133651]
[1646705085460,6.96224417,2519.5,2519.2,0.07133651]
[1646705085854,8.94823417,2519.5,2519.2,0.07133651]
[1646705086054,5.5,2519.4,2519.0,0.0944562]
[1646705086257,0.99311,2519.3,2519.0,0.0944562]
[1646705086454,4.49311,2519.3,2519.0,0.0944562]
[1646705086654,0.3,2519.2,2519.0,0.0944562]
[1646705087154,1.29313,2519.2,2519.0,0.0944562]
[1646705087353,2.2862694,2519.2,2519.0,0.0944562]
[1646705087554,0.95395124,2519.1,2519.0,0.08793518]
[1646705091944,4.45395124,2519.1,2519.0,0.08793518]
[1646705092749,0.95395124,2519.1,2519.0,0.08793518]
[1646705093150,5.5655094,2519.2,2519.0,0.08793518]
[1646705093151,2.97927,2519.2,2519.0,0.08793518]
[1646705093349,0.99311,2519.3,2519.0,0.08793518]
[1646705093548,0.99311,2519.3,2519.0,0.0745896]
[1646705094149,1.21474623,2519.2,2519.0,0.0745896]
[1646705094350,3.20058623,2519.2,2519.0,0.0745896]
[1646705095150,3.20058623,2519.2,2519.0,0.07944001]
[1646705095997,3.20058623,2519.2,2519.0,0.0745896]
[1646705096397,3.20058623,2519.2,2519.0,0.07944001]
[1646705097200,3.20058623,2519.2,2519.0,0.0745896]
[1646705098704,3.20058623,2519.2,2519.0,0.07932746]
[1646705099746,3.20058623,2519.2,2519.0,0.0745896]
[1646705099943,3.20058623,2519.2,2519.0,0.07932746]
[1646705100948,3.20058623,2519.2,2519.0,0.0745896]
[1646705101152,3.20058623,2519.2,2519.0,0.07932746]
[1646705102152,3.20058623,2519.2,2519.0,0.0745896]
[1646705102350,3.20058623,2519.2,2519.0,0.00474905]
[1646705103194,1.98584,2519.2,2519.0,0.00474905]
[1646705103397,1.98584,2519.2,2518.9,0.0143026]
[1646705103596,1.98584,2519.2,2519.0,0.00474905]
[1646705104196,3.13322497,2519.2,2519.0,0.00474905]
[1646705104398,3.13322497,2519.2,2518.9,0.0143026]
[1646705104796,3.13322497,2519.2,2519.0,0.00474905]
[1646705105197,1.98584,2519.2,2519.0,0.00474905]
[1646705105598,1.98584,2519.2,2518.9,0.0143026]
[1646705106001,1.98584,2519.2,2519.0,0.00474792]
[1646705106799,1.98584,2519.2,2518.9,0.0143026]
[1646705107047,1.98584,2519.2,2519.0,0.00474792]
[1646705107249,2.4737,2519.8,2519.0,0.00474792]
[1646705107446,0.20304622,2519.9,2519.0,0.00474792]
[1646705107447,0.00474622,2519.9,2519.0,0.00474792]
[1646705107644,0.00474622,2519.9,2519.1,0.491]
[1646705107844,0.00474622,2519.9,2519.1,13.0144]
[1646705108045,1.186,2520.4,2519.1,13.0144]
[1646705108246,3.5,2520.5,2519.1,13.0144]
[1646705108247,1.98503,2520.1,2519.8,0.98055879]
[1646705108448,2.7911,2520.8,2519.5,12.621]
[1646705108449,0.23772746,2519.7,2519.5,12.621]
[1646705108643,0.23772746,2519.7,2519.6,12.621]
[1646705108845,0.23772746,2519.7,2519.6,13.621]
[1646705109045,0.23772746,2519.7,2519.6,14.22665306]
[1646705109247,0.23772746,2519.7,2519.6,15.56276948]
[1646705109446,0.23772746,2519.7,2519.6,16.55503948]
[1646705111301,0.23772746,2519.7,2519.6,17.15274153]
[1646705111501,0.00474701,2519.9,2519.7,5.5]
[1646705111704,0.1512,2523.1,2519.8,15.63]
[1646705111705,0.9923,2520.7,2519.8,15.63]
[1646705111897,0.9923,2520.7,2520.0,0.99224]
[1646705112097,0.9923,2520.7,2520.0,4.49224]
[1646705112301,0.9923,2520.7,2520.0,5.49224]
[1646705112900,1.00712836,2520.5,2520.0,2.13810275]
[1646705113099,1.00712836,2520.5,2519.7,0.00198155]
[1646705113100,2.004365,2520.5,2519.7,0.00198155]
[1646705113299,2.004365,2520.5,2519.7,0.61112625]
[1646705113300,1.954365,2520.5,2519.7,0.61112625]
[1646705114101,1.94961836,2520.5,2520.0,1.10636322]
[1646705114303,0.00474681,2520.2,2520.0,1.10636322]
[1646705114746,0.99715681,2520.2,2520.0,1.10636322]
[1646705115346,0.99241,2520.2,2520.0,1.10636322]
[1646705115548,0.99715681,2520.2,2520.0,1.10636322]
[1646705116351,0.99715681,2520.2,2519.8,0.99238]
[1646705116652,0.99241,2520.2,2519.8,0.99238]
[1646705116850,0.00491811,2520.2,2519.8,0.99238]
[1646705117050,0.00491811,2520.2,2519.9,0.6305742]
[1646705117253,0.00491811,2520.2,2520.0,0.99233]
[1646705117455,0.00491811,2520.2,2520.1,4.130504]
[1646705117654,1.96012744,2521.2,2520.1,3.5]
[1646705117850,0.9630665,2521.1,2520.1,4.5]
[1646705118051,1.96796648,2521.1,2520.6,1.05654543]
[1646705118294,0.9630665,2521.0,2520.6,1.05654543]
[1646705119093,0.00491762,2520.9,2520.6,1.05654543]
[1646705119295,0.9630665,2520.8,2520.6,1.05654543]
[1646705119898,0.00491762,2520.9,2520.6,1.05654543]
[1646705120198,0.9631789,2520.8,2520.6,1.05654543]
[1646705120399,0.00473523,2520.8,2520.6,1.05654543]
[1646705121302,2.29701998,2521.1,2520.6,1.05654543]
[1646705121502,0.00473523,2520.8,2520.6,1.05654543]
[1646705122149,0.00473523,2520.8,2520.7,0.99207]
[1646705122546,1.29212,2521.1,2520.7,0.99207]
[1646705122850,0.00473523,2520.8,2520.5,0.59953583]
[1646705123248,0.9639362,2520.7,2520.5,0.59953583]
[1646705123947,0.00474748,2520.8,2520.5,1.7071539]
[1646705124148,1.95623227,2520.7,2520.5,1.7071539]
[1646705124349,0.00474748,2520.8,2520.5,2.6992739]
[1646705124749,0.00474748,2520.8,2520.5,3.6992739]
[1646705125050,7.9198,2521.6,2520.5,3.6992739]
[1646705125051,1.9841,2521.2,2520.6,17.6139]
[1646705125250,0.00474748,2520.8,2520.7,0.9919241]
[1646705125554,4.88396505,2521.7,2520.7,0.9919241]
[1646705125555,0.71382744,2521.8,2520.9,12.13]
[1646705125807,10.1907,2522.2,2521.1,12.13]
[1646705125808,0.96408201,2521.7,2521.1,12.13]
[1646705126007,0.96408201,2521.6,2521.2,3.5]
[1646705126207,10.04712744,2522.2,2521.3,2.28327]
[1646705126407,0.96288764,2522.1,2521.7,0.9334453]
[1646705126609,0.96288764,2522.1,2521.8,0.9916]
[1646705127007,0.99165,2522.0,2521.7,0.9334453]
[1646705127208,0.96288764,2521.9,2521.3,3.50198155]
[1646705127406,0.96288764,2521.9,2521.1,1.0]
[1646705127407,2.94645764,2521.9,2521.1,1.0]
[1646705127608,2.94645764,2521.9,2521.0,0.00198155]
[1646705127609,0.96288764,2521.8,2521.0,0.00198155]
[1646705127806,0.96288764,2521.8,2520.6,4.99298155]
[1646705128007,0.96288764,2521.8,2520.7,0.00198155]
[1646705128608,0.96288764,2521.8,2520.7,1.98581155]
[1646705128609,0.99199,2521.2,2520.7,1.98581155]
[1646705128809,0.99199,2521.2,2520.7,0.25698223]
[1646705128810,0.96229405,2521.1,2520.7,0.25698223]
[1646705129208,0.96229405,2521.1,2520.3,0.00198155]
[1646705129445,0.96229405,2521.1,2520.1,0.99415225]
[1646705129848,1.05128238,2520.7,2520.2,1.0233805]
[1646705130049,2.04346238,2520.7,2520.2,1.0233805]
[1646705130259,2.04346238,2520.7,2520.3,1.98416]
[1646705132960,0.99218,2520.7,2520.3,1.98416]
[1646705133994,0.99684127,2520.9,2520.4,15.63]
[1646705134193,0.00484127,2520.9,2520.4,17.62196]
[1646705134393,0.71382744,2521.6,2520.7,0.3934]
[1646705134592,2.0818104,2521.9,2520.7,0.3934]
[1646705134593,0.93119543,2521.5,2520.9,0.99189]
[1646705134793,0.93119543,2521.4,2520.9,0.99189]
[1646705134994,2.0856461,2521.2,2520.8,1.00198155]
[1646705135194,2.0856461,2521.2,2520.8,1.0]
[1646705135392,2.0856461,2521.2,2520.7,0.3]
[1646705135593,0.93085359,2521.1,2520.4,4.5]
[1646705135796,0.93085359,2521.1,2520.4,1.0]
[1646705135997,0.99208,2521.0,2520.4,1.0]
[1646705136200,0.99208,2521.0,2520.3,2.57880611]
[1646705136396,0.99208,2521.0,2520.5,1.98407]
[1646705137346,0.00483375,2520.9,2520.5,1.98407]
[1646705138247,0.99208,2521.0,2520.5,2.9760774]
[1646705138446,0.00473961,2520.9,2520.6,0.99199]
[1646705139248,0.99208,2521.0,2520.6,0.99199]
[1646705139651,0.00473967,2520.9,2520.6,0.99199]
[1646705140051,0.00473967,2520.9,2520.8,2.04641167]
[1646705140255,0.00473967,2520.9,2520.8,14.17641167]
[1646705140452,1.98375,2521.4,2520.8,14.47641167]
[1646705140708,1.98375,2521.4,2520.8,2.84543167]
[1646705140899,0.0047397,2521.0,2520.8,2.84543167]
[1646705141099,0.0047397,2521.0,2520.8,13.97543167]
[1646705141306,0.0047397,2521.0,2520.9,0.9918211]
[1646705141503,0.0047397,2521.0,2520.9,13.1218211]
[1646705141702,1.98375,2521.4,2520.9,13.1218211]
[1646705141901,1.98375,2521.4,2521.0,0.99187]
[1646705142101,0.99182,2521.3,2521.0,0.99187]
[1646705142900,0.99182,2521.3,2521.0,1.19017]
[1646705143103,0.99182,2521.3,2521.2,0.95957063]
[1646705143305,0.99656914,2521.3,2521.2,0.95957063]
[1646705143504,0.00474914,2521.3,2521.2,0.95957063]
[1646705143704,0.00474914,2521.3,2521.2,13.38957063]
[1646705144108,1.98358,2521.9,2521.2,14.38957063]
[1646705144310,0.93240434,2521.8,2521.6,1.21263568]
[1646705144550,0.93240434,2521.8,2521.7,0.99168]
[1646705147755,0.93240434,2521.8,2521.7,1.57966453]
[1646705148896,0.93240434,2521.8,2521.5,1.00525676]
[1646705149899,0.61527754,2522.0,2521.9,2.88274177]
[1646705150100,1.2465,2522.3,2521.9,2.88274177]
[1646705150303,3.16712744,2522.4,2521.9,2.88274177]
[1646705150500,0.71382744,2522.4,2521.9,2.88274177]
[1646705150701,4.0677,2522.5,2522.0,1.9831715]
[1646705150703,4.78152744,2522.5,2522.0,1.9831715]
[1646705151001,0.71382744,2522.5,2522.0,3.9660715]
[1646705151201,0.71382744,2522.5,2522.2,1.16991159]
[1646705151599,0.71382744,2522.6,2522.2,2.16136159]
[1646705152048,0.71382744,2522.6,2522.2,0.9914395]
[1646705152250,0.71566745,2522.5,2522.2,0.9914395]
[1646705152852,0.00532206,2522.5,2522.2,0.9914395]
[1646705153652,0.71566745,2522.6,2522.2,0.9914395]
[1646705153853,1.29980879,2522.8,2522.1,1.9828789]
[1646705153854,0.71566745,2522.3,2522.1,1.9828789]
[1646705154052,0.9441104,2522.5,2521.6,8.9243332]
[1646705154053,0.71566745,2522.2,2521.9,1.983408]
[1646705154653,0.71566745,2522.2,2521.7,1.59285075]
[1646705154952,1.71603344,2522.2,2521.7,1.59285075]
[1646705155153,0.71566745,2522.1,2521.7,2.19285075]
[1646705156405,0.00532245,2522.0,2521.7,2.19285075]
[1646705157303,0.71566745,2522.1,2521.7,2.19285075]
[1646705157706,0.0051627,2522.0,2521.7,1.5918754]
[1646705158107,0.72083015,2522.0,2521.7,1.2918754]
[1646705158305,0.72083015,2522.0,2521.6,2.9746632]
[1646705158306,0.71566745,2521.8,2521.6,0.991939]
[1646705158507,0.71566745,2521.7,2521.6,0.991939]
[1646705160154,0.71019745,2521.7,2521.6,0.991939]
[1646705160556,1.08415504,2521.8,2521.6,0.991939]
[1646705160758,1.07859504,2521.8,2521.6,0.991939]
[1646705161460,0.94915241,2522.0,2521.6,2.9753699]
[1646705162157,0.9441104,2522.0,2521.6,2.9753699]
[1646705162360,0.94915261,2522.0,2521.6,2.9753699]
[1646705162760,0.9441104,2521.9,2521.6,2.9753699]
[1646705163799,0.9441104,2521.9,2521.6,0.9917832]
[1646705163997,0.9441104,2521.7,2521.3,0.9920144]
[1646705164797,0.97723557,2521.5,2521.3,0.9920144]
[1646705165101,0.97723557,2521.5,2521.2,0.3]
[1646705165102,0.97723557,2521.5,2521.0,0.9920984]
[1646705168154,0.97723557,2521.5,2520.7,1.98634435]
[1646705168155,0.9441104,2521.4,2520.7,1.98634435]
[1646705168352,0.9441104,2521.4,2520.6,0.1983]
[1646705168550,0.9441104,2521.2,2520.5,0.02218122]
[1646705168750,0.9441104,2521.2,2520.5,0.02019967]
[1646705168949,0.9441104,2521.2,2519.8,0.00198155]
[1646705168950,0.01732998,2520.2,2519.8,0.00198155]
[1646705169150,0.01732998,2520.2,2520.0,1.15991523]
[1646705169352,0.01732998,2520.2,2520.0,2.15234363]
[1646705169759,1.1381,2521.1,2520.2,2.5]
[1646705169952,0.86841544,2521.0,2520.3,0.73236004]
[1646705170156,0.86841544,2521.0,2520.4,0.73236004]
[1646705170358,0.86841544,2521.0,2520.5,0.73236004]
[1646705170558,0.86841544,2521.0,2520.6,0.9920666]
[1646705170804,0.86841544,2521.0,2520.7,0.3]
[1646705171003,0.86841544,2520.9,2520.7,0.3]
[1646705171202,0.86841544,2520.8,2520.7,0.3]
[1646705171401,0.86841544,2520.8,2520.6,1.3451422]
[1646705171600,0.86841544,2520.7,2520.6,1.3451422]
[1646705171801,0.86841544,2520.7,2520.6,2.07731026]
[1646705172101,5.58236331,2521.3,2520.8,0.9920917]
[1646705172102,0.00532334,2520.9,2520.8,0.9920917]
[1646705172301,0.00532334,2520.9,2520.8,5.22425976]
[1646705172503,0.00532334,2520.9,2520.8,5.52425976]